bitfinex/quotes_SOLUSD_20250823
["timestamp","ask_amount","ask_price","bid_price","bid_amount"]
[1755930810820,48.63319283,206.38,206.37,9.89319408]
[1755930811121,48.69319283,206.38,206.37,9.89319408]
[1755930811537,49.35319283,206.38,206.36,0.31432314]
[1755930811853,49.35319283,206.38,206.36,0.03]
[1755930812838,10.61319283,206.38,206.36,0.03]
[1755930813042,0.06,206.38,206.37,10.60319408]
[1755930813227,0.06,206.38,206.37,10.88751722]
[1755930813437,0.06,206.38,206.37,10.17751722]
[1755930813623,0.06,206.38,206.37,13.47204694]
[1755930814035,0.72,206.38,206.36,9.92319408]
[1755930814254,0.72,206.38,206.37,3.29468399]
[1755930814421,39.46,206.38,206.37,3.29468399]
[1755930814930,38.8,206.38,206.37,3.29468399]
[1755930815531,0.06,206.38,206.37,3.29468399]
[1755930815739,38.8,206.38,206.37,3.29468399]
[1755930815944,0.06,206.38,206.37,3.29468399]
[1755930816149,38.8,206.38,206.37,3.29468399]
[1755930816736,38.8,206.38,206.37,3.29586931]
[1755930817522,0.06,206.38,206.37,3.29586931]
[1755930817741,38.8,206.38,206.37,3.29586931]
[1755930817953,38.78,206.38,206.37,3.29586931]
[1755930818250,0.06,206.38,206.37,3.29586931]
[1755930818430,38.78,206.38,206.37,3.29586931]
[1755930818753,38.78,206.38,206.37,29.29586931]
[1755930819927,38.78,206.38,206.37,29.25207555]
[1755930820763,59.22638691,206.38,206.37,3.25207555]
[1755930820922,10.61319283,206.38,206.37,3.25207555]
[1755930821124,49.33319283,206.38,206.37,3.25207555]
[1755930822041,48.67319283,206.38,206.37,29.25207555]
[1755930822245,9.95319283,206.38,206.37,29.25207555]
[1755930822435,48.67319283,206.38,206.37,3.25207555]
[1755930822644,48.67319283,206.38,206.36,9.92319408]
[1755930822843,48.67319283,206.38,206.37,3.20291961]
[1755930823051,38.78,206.38,206.37,14.09043683]
[1755930823650,0.06,206.38,206.37,14.09043683]
[1755930823946,38.78,206.38,206.37,10.88751722]
[1755930824539,0.06,206.38,206.37,10.88751722]
[1755930825042,38.78,206.38,206.37,10.88751722]
[1755930826451,0.06,206.38,206.37,10.88751722]
[1755930826952,0.06,206.38,206.37,27.91715946]
[1755930827153,0.06,206.43,206.41,13.59559401]
[1755930827469,0.06,206.5,206.46,0.28432314]
[1755930827672,0.06,206.5,206.46,40.32156545]
[1755930827850,0.06,206.5,206.48,10.17751722]
[1755930828052,0.06,206.5,206.48,13.61156545]
[1755930828269,0.06,206.5,206.48,14.23156545]
[1755930829860,0.06,206.5,206.48,13.61156545]
[1755930830083,0.06,206.5,206.48,18.37271471]
[1755930831958,0.06,206.5,206.48,14.93866648]
[1755930832158,0.06,206.5,206.48,18.36047217]
[1755930832575,0.06,206.5,206.48,18.35935381]
[1755930835062,0.86,206.49,206.48,3.42068733]
[1755930835462,0.86,206.49,206.48,29.42068733]
[1755930837363,0.86,206.49,206.48,3.42068733]
[1755930837364,39.52,206.49,206.48,3.42068733]
[1755930838569,49.41319408,206.49,206.48,3.42068733]
[1755930839869,39.52,206.49,206.48,3.42068733]
[1755930841012,39.52,206.49,206.46,26.0]
[1755930841317,10.59319283,206.48,206.47,3.41516072]
[1755930841617,49.25319283,206.48,206.47,3.41516072]
[1755930843210,59.14638691,206.48,206.47,3.41516072]
[1755930843813,49.25319283,206.48,206.47,3.41516072]
[1755930844229,59.14638691,206.48,206.47,3.41516072]
[1755930844600,72.74198092,206.48,206.47,3.41516072]
[1755930844797,10.59319283,206.48,206.47,3.41516072]
[1755930845100,9.89319283,206.48,206.47,3.41516072]
[1755930845404,0.2,206.49,206.48,26.0]
[1755930845588,0.2,206.49,206.48,40.21267794]
[1755930849523,0.2,206.49,206.48,40.2188465]
[1755930851229,0.2,206.49,206.48,53.81444051]
[1755930851440,0.06,206.5,206.49,10.17751722]
[1755930851609,0.06,206.5,206.49,13.5988465]
[1755930851808,0.06,206.5,206.49,14.2188465]
[1755930853210,0.76,206.5,206.49,3.70565242]
[1755930853414,0.76,206.5,206.49,13.5988465]
[1755930853415,0.06,206.5,206.49,13.5988465]
[1755930854633,0.06,206.5,206.49,3.70565242]
[1755930854932,0.06,206.5,206.49,13.5988465]
[1755930857032,0.06,206.5,206.49,14.2188465]
[1755930857235,0.06,206.5,206.49,13.5988465]
[1755930858440,0.06,206.5,206.49,10.79751722]
[1755930858633,0.06,206.5,206.49,13.59666786]
[1755930859140,0.06,206.5,206.49,13.59682325]
[1755930860312,0.06,206.5,206.49,13.62682325]
[1755930863665,0.06,206.5,206.49,14.24682325]
[1755930863960,0.06,206.5,206.49,13.62682325]
[1755930865438,0.06,206.5,206.49,14.25249588]
[1755930865635,0.06,206.5,206.49,10.20751722]
[1755930866627,0.06,206.5,206.49,13.63481618]
[1755930867140,0.06,206.5,206.49,27.23041019]
[1755930867445,0.06,206.52,206.51,0.28432314]
[1755930867748,0.00302781,206.52,206.51,13.60596767]
[1755930867912,0.06,206.53,206.52,39.87991715]
[1755930868111,0.06,206.53,206.52,43.30785155]
[1755930868343,0.06,206.53,206.52,43.92785155]
[1755930870416,0.06,206.53,206.52,50.39311123]
[1755930870649,0.06,206.53,206.52,53.82322358]
[1755930871345,0.06,206.53,206.52,53.82275564]
[1755930873029,0.06,206.53,206.52,92.40275564]
[1755930873232,0.06,206.53,206.52,91.78275564]
[1755930873423,0.06,206.53,206.52,92.40275564]
[1755930873629,0.06,206.53,206.52,92.40305446]
[1755930874321,0.06,206.53,206.52,91.78305446]
[1755930877128,0.06,206.54,206.53,0.28432314]
[1755930877341,0.72,206.54,206.53,17.30986038]
[1755930877550,0.68051509,206.54,206.53,27.20305446]
[1755930877729,0.02051509,206.54,206.53,27.20305446]
[1755930879152,0.68051509,206.54,206.53,13.46529888]
[1755930879338,0.68051509,206.54,206.53,13.60746045]
[1755930879644,0.68051509,206.54,206.53,10.17751722]
[1755930879950,0.68051509,206.54,206.53,13.58794024]
[1755930882159,0.02051509,206.54,206.53,13.58794024]
[1755930882671,0.68051509,206.54,206.53,13.58794024]
[1755930882831,0.02051509,206.54,206.53,39.58884346]
[1755930884452,0.68051509,206.54,206.53,3.41132624]
[1755930884665,10.57370792,206.54,206.53,2.42132624]
[1755930884960,10.57370792,206.54,206.53,12.31452032]
[1755930886357,10.57370792,206.54,206.53,2.42132624]
[1755930886540,10.57370792,206.54,206.53,12.31452032]
[1755930888737,10.57370792,206.54,206.53,9.89319408]
[1755930890040,9.89319283,206.52,206.51,10.17751722]
[1755930890254,10.46319283,206.52,206.51,10.17751722]
[1755930890456,9.89319283,206.52,206.51,10.17751722]
[1755930890843,9.91370792,206.54,206.53,26.0]
[1755930891043,9.91370792,206.54,206.53,35.89319408]
[1755930891871,0.02051509,206.54,206.53,35.89319408]
[1755930893362,0.02051509,206.54,206.53,35.92319408]
[1755930894052,0.02051509,206.54,206.53,36.20751722]
[1755930894243,9.95319283,206.55,206.53,36.20751722]
[1755930894452,9.95319283,206.55,206.54,9.89319408]
[1755930894638,0.06,206.55,206.54,10.89751722]
[1755930894837,0.00452831,206.55,206.54,10.89751722]
[1755930896165,0.00452831,206.55,206.54,49.43751722]
[1755930896373,0.00452831,206.55,206.54,10.89751722]
[1755930896576,0.00452831,206.55,206.54,14.24681413]
[1755930896755,0.06,206.56,206.55,36.17751722]
[1755930896952,0.06,206.56,206.55,39.52681413]
[1755930897148,0.06,206.56,206.55,40.24681413]
[1755930898177,0.06,206.56,206.55,40.24556872]
[1755930900947,0.06,206.56,206.55,40.24456571]
[1755930903678,0.06,206.56,206.55,40.22456571]
[1755930904373,0.03966054,206.57,206.55,40.22456571]
[1755930904578,0.03966054,206.57,206.56,51.76024257]
[1755930904807,6.29781513,206.59,206.58,26.0]
[1755930905077,6.29781513,206.6,206.58,39.52456571]
[1755930905284,6.29781513,206.6,206.59,39.24024257]
[1755930906181,6.29781513,206.6,206.59,35.89319408]
[1755930906383,0.06,206.61,206.59,77.94821591]
[1755930906558,0.06,206.61,206.6,13.44821591]
[1755930906762,0.06,206.61,206.6,14.14739057]
[1755930907682,0.06,206.61,206.6,4.25419649]
[1755930907894,0.06,206.61,206.6,51.94739057]
[1755930908377,0.06,206.61,206.6,42.05419649]
[1755930908559,0.06,206.61,206.6,51.94739057]
[1755930909791,0.06,206.61,206.6,13.44739057]
[1755930910159,0.63,206.61,206.6,3.26987335]
[1755930914288,10.52319408,206.61,206.6,3.26987335]
[1755930915367,10.52319408,206.61,206.57,26.0]
[1755930915580,0.57,206.6,206.58,3.25353644]
[1755930915790,0.57,206.6,206.59,3.25353644]
[1755930916096,6.86781513,206.6,206.59,3.25353879]
[1755930916302,16.76100921,206.6,206.59,3.25353879]
[1755930920406,16.19100921,206.6,206.59,3.25353879]
[1755930921291,6.29781513,206.6,206.59,3.25353879]
[1755930921499,6.29781513,206.6,206.59,3.25338873]
[1755930922714,6.29781513,206.6,206.59,13.84658281]
[1755930923888,6.29781513,206.6,206.59,3.95338873]
[1755930924098,6.29781513,206.6,206.59,3.25338873]
[1755930924293,6.29781513,206.6,206.59,29.25338873]
[1755930924502,6.29781513,206.6,206.59,26.0]
[1755930924709,6.29781513,206.6,206.59,29.25223347]
[1755930925095,6.29781513,206.6,206.59,3.25223347]
[1755930925295,6.86781513,206.6,206.59,3.25223347]
[1755930925897,16.76100921,206.6,206.59,3.25223347]
[1755930928011,16.19100921,206.6,206.59,3.25223347]
[1755930928689,16.19100921,206.6,206.59,3.28223347]
[1755930929208,16.25100921,206.6,206.59,3.28223347]
[1755930930300,30.41660322,206.6,206.59,3.28223347]
[1755930932225,30.41660322,206.6,206.59,0.03]
[1755930932790,30.41660322,206.6,206.59,3.28339567]
[1755930933522,68.87660322,206.6,206.59,3.28339567]
[1755930933693,68.87660322,206.6,206.59,3.28342422]
[1755930933887,68.87660322,206.6,206.59,0.03]
[1755930934108,68.87660322,206.6,206.59,3.28338053]
[1755930934529,68.87660322,206.6,206.59,3.28345101]
[1755930936208,68.87660322,206.6,206.59,0.03]
[1755930937489,19.89340914,206.56,206.55,0.03]
[1755930937695,6.29781513,206.56,206.55,13.15064823]
[1755930937937,6.29781513,206.58,206.57,26.0]
[1755930938099,6.29781513,206.58,206.57,39.12064823]
[1755930938304,6.29781513,206.58,206.57,39.80064823]
[1755930938525,0.06,206.6,206.59,26.0]
[1755930938726,0.06,206.6,206.59,39.12064823]
[1755930939095,0.06,206.6,206.59,40.08497137]
[1755930940291,0.02100657,206.6,206.59,40.08497137]
[1755930942030,0.02100657,206.6,206.59,3.90745415]
[1755930942394,0.02100657,206.6,206.59,13.80064823]
[1755930942591,0.02100657,206.6,206.59,14.08497137]
[1755930942996,0.02100657,206.6,206.59,10.85751722]
[1755930943209,0.02100657,206.6,206.59,14.08137103]
[1755930943694,0.02100657,206.6,206.59,14.08140749]
[1755930944217,0.02100657,206.6,206.59,4.18821341]
[1755930944396,0.02100657,206.6,206.59,14.08140749]
[1755930946023,0.02100657,206.6,206.59,4.18821341]
[1755930946313,0.02100657,206.6,206.59,14.08140749]
[1755930946621,0.02100657,206.6,206.59,14.11140749]
[1755930950315,19.59859251,206.59,206.56,0.03]
[1755930950510,19.59859251,206.59,206.58,9.89319408]
[1755930952406,19.59859251,206.59,206.58,10.57319408]
[1755930955609,19.59859251,206.59,206.58,10.85751722]
[1755930957124,0.02100657,206.6,206.58,10.85751722]
[1755930957344,0.02100657,206.6,206.59,36.59319408]
[1755930960613,0.02100657,206.6,206.59,35.89319408]
[1755930961119,0.02100657,206.6,206.59,36.59319408]
[1755930962234,0.02100657,206.6,206.59,40.04955603]
[1755930962433,0.06,206.61,206.59,40.04955603]
[1755930962749,0.06,206.63,206.62,26.0]
[1755930962915,0.06,206.63,206.62,39.34955603]
[1755930963231,0.06,206.63,206.62,39.34873869]
[1755930966309,0.06,206.63,206.62,40.04873869]
[1755930967340,12.08347147,206.9,206.62,40.04873869]
[1755930967341,5.57781513,206.77,206.67,26.28432314]
[1755930967529,0.72,206.77,206.71,26.0]
[1755930967721,6.29781513,206.79,206.78,26.0]
[1755930967912,6.29781513,206.79,206.78,39.34873869]
[1755930968113,5.57781513,206.79,206.78,39.34873869]
[1755930968914,0.72,206.85,206.78,48.31823116]
[1755930969111,0.72,206.85,206.84,9.89319408]
[1755930969313,0.72,206.85,206.84,13.34873869]
[1755930969734,0.72,206.85,206.84,13.35231178]
[1755930970324,0.72,206.85,206.84,3.59437415]
[1755930970640,0.72,206.85,206.84,13.48756823]
[1755930971337,0.72,206.85,206.84,3.59437415]
[1755930971518,0.72,206.85,206.84,13.48756823]
[1755930974015,0.72,206.89,206.87,26.0]
[1755930974215,0.72,206.89,206.88,13.48756823]
[1755930974429,0.72,206.89,206.88,3.59437415]
[1755930974625,0.72,206.89,206.88,13.48756823]
[1755930976160,9.89319408,206.95,206.91,26.0]
[1755930976327,13.59559401,206.94,206.92,3.59437415]
[1755930976650,13.59559401,206.95,206.93,3.59437415]
[1755930976834,13.87991715,206.95,206.94,3.59437415]
[1755930977036,13.59559401,206.97,206.94,3.59437415]
[1755930977235,0.72,206.96,206.95,3.59437415]
[1755930978351,13.59559401,206.95,206.91,9.89319408]
[1755930978656,0.72,206.94,206.92,3.57262093]
[1755930978841,13.59559401,206.98,206.93,9.89319408]
[1755930979031,13.59559401,206.98,206.94,3.57233818]
[1755930979232,13.59559401,206.98,206.95,3.57233818]
[1755930979434,0.72,206.97,206.94,9.89319408]
[1755930979745,0.72,206.97,206.95,3.57023172]
[1755930980051,0.72,206.97,206.96,3.57023172]
[1755930980633,0.72,206.99,206.96,13.4634258]
[1755930980835,0.72,206.98,206.97,3.57023172]
[1755930981031,1.5558434,207.0,206.97,3.57023172]
[1755930981256,0.72,206.99,206.98,3.57023172]
[1755930981458,0.72,206.99,206.98,13.4634258]
[1755930981869,1.5558434,207.0,206.98,13.4634258]
[1755930982170,1.5558434,207.0,206.99,39.4634258]
[1755930982341,2.2758434,207.0,206.99,39.4634258]
[1755930982835,2.2758434,207.0,206.99,29.57023172]
[1755930983461,2.2758434,207.0,206.99,39.4634258]
[1755930984045,1.5558434,207.0,206.99,39.4634258]
[1755930985663,2.2758434,207.0,206.99,29.57023172]
[1755930986045,2.2758434,207.0,206.99,39.4634258]
[1755930986461,1.5558434,207.0,206.99,39.4634258]
[1755930986762,2.2758434,207.0,206.99,39.4634258]
[1755930986964,15.87143741,207.0,206.99,29.57023172]
[1755930987264,15.87143741,207.0,206.99,3.57023172]
[1755930988043,15.87143741,207.0,206.98,26.0]
[1755930988044,13.59559401,206.99,206.98,26.0]
[1755930988240,14.25559401,206.99,206.98,26.0]
[1755930988863,13.59559401,206.98,206.96,9.89319408]
[1755930989049,0.66,206.97,206.96,9.89319408]
[1755930989764,0.66,206.97,206.95,26.0]
[1755930989950,13.59559401,206.96,206.93,9.89319408]
[1755930990140,0.66,206.95,206.93,9.89319408]
[1755930992657,13.59559401,206.96,206.95,26.0]
[1755930993271,14.25559401,206.96,206.95,26.0]
[1755930993464,13.59559401,206.97,206.96,26.0]
[1755930993776,14.25559401,206.97,206.96,26.0]
[1755930993975,13.59559401,206.97,206.94,9.89319408]
[1755930994188,2.2158434,207.0,206.95,9.89319408]
[1755930994476,13.59559401,206.99,206.97,9.89319408]
[1755930994680,2.2158434,207.0,206.96,3.27887651]
[1755930994681,1.5558434,207.0,206.98,9.89319408]
[1755930995463,1.5558434,207.0,206.97,9.89319408]
[1755930995782,1.5558434,207.0,206.96,9.89319408]
[1755930995783,14.25559401,206.99,206.96,9.89319408]
[1755930996463,13.59559401,206.99,206.97,13.17371662]
[1755930996660,13.59559401,206.99,206.98,3.28052138]
[1755930997162,13.59559401,206.99,206.97,9.89319408]
[1755930997487,13.59559401,206.99,206.98,3.28169149]
[1755930998088,13.59559401,206.99,206.98,3.28169014]
[1755930998389,13.59559401,206.99,206.98,13.17488422]
[1755930999294,1.5558434,207.0,206.98,13.17488422]
[1755930999458,1.5558434,207.0,206.99,3.28169014]
[1755931001667,1.5558434,207.0,206.99,13.17488422]
[1755931002371,1.5558434,207.0,206.99,3.28169014]
[1755931002575,1.5558434,207.0,206.99,39.17488422]
[1755931002779,1.5558434,207.0,206.99,13.84488422]
[1755931003792,0.58122481,207.0,206.99,13.84488422]
[1755931004661,0.06,207.02,207.01,26.0]
[1755931004867,0.06,207.02,207.01,39.17488422]
[1755931005290,0.06,207.02,207.01,39.84488422]
[1755931006487,0.06,207.02,207.01,29.28169014]
[1755931006689,0.06,207.02,207.01,3.28607693]
[1755931007187,0.06,207.02,207.01,13.17927101]
[1755931007573,0.06,207.02,207.01,13.84927101]
[1755931009192,0.06,207.02,207.01,3.95607693]
[1755931009494,0.06,207.02,207.01,13.84927101]
[1755931009695,0.06,207.02,207.01,13.85612863]
[1755931010992,0.06,207.02,207.01,18.64377221]
[1755931013885,0.02300971,207.02,207.01,18.64377221]
[1755931015778,0.02300971,207.02,207.01,15.35083766]
[1755931015973,0.02300971,207.02,207.01,17.80895154]
[1755931016377,0.02300971,207.02,207.01,17.81050585]
[1755931016674,0.02300971,207.02,207.01,17.81035905]
[1755931016877,0.68300971,207.02,207.01,3.12952139]
[1755931017474,0.02300971,207.02,207.01,3.12952139]
[1755931017679,0.02300971,207.02,207.01,13.02271547]
[1755931018074,0.02300971,207.02,207.01,39.74271547]
[1755931019391,0.02300971,207.02,207.01,39.02271547]
[1755931019919,0.70300971,207.02,207.01,29.12952139]
[1755931020079,10.59620379,207.02,207.01,3.12952139]
[1755931020275,0.70300971,207.02,207.01,3.12952139]
[1755931020477,10.59620379,207.02,207.01,3.12952139]
[1755931021613,0.70300971,207.02,207.01,3.12952139]
[1755931021918,10.59620379,207.02,207.01,3.12952139]
[1755931022121,14.29860372,207.02,207.01,3.12952139]
[1755931022426,0.70300971,207.02,207.01,3.12952139]
[1755931023016,0.02300971,207.02,207.01,13.02271547]
[1755931023215,0.02300971,207.02,207.01,13.74271547]
[1755931023723,0.02300971,207.02,207.01,3.12952139]
[1755931023925,0.02300971,207.02,207.0,9.92319408]
[1755931024214,0.02300971,207.02,207.01,3.13709166]
[1755931024417,0.70300971,207.02,207.01,3.13709166]
[1755931024594,0.70300971,207.02,207.01,3.13776691]
[1755931024797,0.70300971,207.02,207.0,0.03]
[1755931024999,0.02300971,207.02,207.01,3.13776691]
[1755931025398,0.02300971,207.02,207.0,26.03]
[1755931025602,0.02300971,207.02,207.01,26.0]
[1755931026005,0.70300971,207.02,207.01,26.0]
[1755931026516,0.70300971,207.02,207.0,0.03]
[1755931026906,10.57319408,207.01,207.0,0.03]
[1755931027300,0.68,207.01,207.0,0.03]
[1755931027623,10.57319408,207.01,207.0,0.03]
[1755931028328,0.68,207.01,207.0,0.03]
[1755931028506,0.02300971,207.02,207.0,0.03]
[1755931028709,0.02300971,207.02,207.0,26.03]
[1755931028710,0.70300971,207.02,207.0,26.03]
[1755931029111,0.02300971,207.02,207.0,26.03]
[1755931029312,0.70300971,207.02,207.0,26.03]
[1755931029707,0.02300971,207.02,207.0,9.92319408]
[1755931030435,0.02300971,207.02,207.0,10.64319408]
[1755931030929,0.02300971,207.02,207.01,26.0]
[1755931031503,0.02300971,207.02,207.01,9.89319408]
[1755931032227,0.02300971,207.02,207.0,9.92319408]
[1755931033642,0.02300971,207.02,207.0,0.03]
[1755931033842,0.02300971,207.02,207.0,9.92319408]
[1755931034542,0.02300971,207.02,207.0,0.03]
[1755931034719,0.02300971,207.02,207.0,9.92319408]
[1755931035322,0.02300971,207.02,207.01,9.89319408]
[1755931035630,0.70300971,207.02,207.0,26.03]
[1755931035812,0.70300971,207.02,207.01,26.0]
[1755931036010,0.02300971,207.02,207.01,26.0]
[1755931036215,9.91620379,207.02,207.0,0.03]
[1755931036417,9.89319408,207.01,207.0,0.03]
[1755931036619,10.57319408,207.01,207.0,0.03]
[1755931037127,0.68,207.01,207.0,0.03]
[1755931037643,10.57319408,207.01,207.0,0.03]
[1755931041317,0.02300971,207.02,207.0,9.92319408]
[1755931041517,0.02300971,207.02,207.01,9.89319408]
[1755931041711,0.02300971,207.02,207.0,9.92319408]
[1755931042231,0.02300971,207.02,207.0,0.75]
[1755931042544,0.02300971,207.02,207.01,10.61319408]
[1755931042737,0.02300971,207.02,207.0,0.03]
[1755931044445,0.02300971,207.02,207.01,9.89319408]
[1755931044739,0.00146233,207.02,207.01,13.27734412]
[1755931045326,0.00146233,207.02,207.01,13.99734412]
[1755931046640,0.06,207.05,207.04,26.0]
[1755931046827,0.06,207.05,207.04,3.38415004]
[1755931048332,0.06,207.05,207.04,13.96734412]
[1755931049044,0.06,207.05,207.04,13.96719832]
[1755931049414,0.06,207.05,207.04,4.07400424]
[1755931049619,0.06,207.05,207.04,13.96719832]
[1755931051554,0.06,207.05,207.04,13.27719832]
[1755931051933,0.06,207.05,207.04,13.27636953]
[1755931052850,0.78,207.05,207.04,3.38317545]
[1755931053442,0.78,207.05,207.04,29.38317545]
[1755931055658,24.26878809,207.05,207.04,3.38317545]
[1755931056332,62.56878809,207.05,207.04,3.38317545]
[1755931057354,62.56878809,207.05,207.0,0.03]
[1755931057355,13.59559401,207.04,207.0,0.03]
[1755931057545,9.89319408,207.02,207.01,3.41029468]
[1755931057859,10.61319408,207.02,207.01,3.41029468]
[1755931059165,0.72,207.02,207.01,3.41029468]
[1755931059465,10.61319408,207.02,207.01,3.41029468]
[1755931060664,0.72,207.04,207.01,3.41029468]
[1755931060840,0.72,207.02,207.01,3.41029468]
[1755931061031,0.72,207.02,207.01,3.41092129]
[1755931064260,0.72,207.02,207.01,3.44092129]
[1755931064555,39.02,207.02,207.01,3.44092129]
[1755931066857,48.91319408,207.02,207.01,3.44092129]
[1755931067365,48.91319408,207.02,207.01,3.44174722]
[1755931068481,39.02,207.02,207.01,3.44174722]
[1755931068650,48.91319408,207.02,207.01,3.44174722]
[1755931069853,39.02,207.02,207.01,0.03]
[1755931070075,48.91319408,207.02,207.01,3.3920341]
[1755931070269,0.72,207.02,207.01,3.3920341]
[1755931070474,0.06,207.05,207.01,39.97522818]
[1755931070786,0.06,207.05,207.04,26.0]
[1755931070966,0.06,207.05,207.04,3.3620341]
[1755931071157,0.00422434,207.05,207.04,4.0520341]
[1755931071355,0.00422434,207.05,207.04,13.94522818]
[1755931071589,0.06,207.07,207.04,13.94522818]
[1755931071759,0.06,207.07,207.05,13.94522818]
[1755931071959,0.06,207.07,207.06,3.3620341]
[1755931072161,0.06,207.07,207.06,13.94522818]
[1755931072374,0.06,207.07,207.06,4.0520341]
[1755931072578,0.06,207.07,207.06,3.3620341]
[1755931072862,0.06,207.07,207.06,29.3620341]
[1755931073059,0.06,207.07,207.06,3.3620341]
[1755931073266,0.06,207.07,207.06,13.94522818]
[1755931074960,0.06,207.07,207.06,4.0520341]
[1755931075266,0.06,207.07,207.06,3.3620341]
[1755931075887,0.06,207.07,207.06,4.0520341]
[1755931076090,0.06,207.07,207.06,13.94522818]
[1755931076264,0.06,207.07,207.06,13.93925442]
[1755931076687,0.06,207.07,207.06,4.04606034]
[1755931076885,0.06,207.07,207.06,13.93925442]
[1755931079392,0.06,207.07,207.06,13.93569626]
[1755931080074,0.06,207.07,207.06,10.58319408]
[1755931080282,0.06,207.07,207.06,13.93569626]
[1755931081202,0.02184118,207.07,207.06,13.93569626]
[1755931082280,0.02184118,207.07,207.06,3.35250218]
[1755931082675,0.71184118,207.07,207.06,3.35250218]
[1755931083096,10.60503526,207.07,207.06,3.35250218]
[1755931083506,24.20062927,207.07,207.06,3.35250218]
[1755931083714,62.48062927,207.07,207.06,3.35250218]
[1755931084072,62.76495241,207.07,207.06,3.35250218]
[1755931085103,24.48495241,207.07,207.06,3.35250218]
[1755931085272,62.76495241,207.07,207.06,3.35250218]
[1755931087618,0.28432314,207.05,207.01,0.03]
[1755931087791,23.48878809,207.02,207.01,0.03]
[1755931088103,62.45878809,207.02,207.01,3.37686624]
[1755931088506,0.69,207.05,207.02,26.0]
[1755931088684,48.17319408,207.06,207.03,3.34686624]
[1755931088882,48.17319408,207.06,207.04,3.34686624]
[1755931089083,62.45878809,207.06,207.05,3.34686624]
[1755931089293,0.02184118,207.07,207.05,3.34686624]
[1755931089478,0.02184118,207.07,207.06,3.34686624]
[1755931089677,0.02184118,207.07,207.06,13.94006032]
[1755931090300,0.00159225,207.07,207.06,4.04686624]
[1755931090514,0.06,207.08,207.06,13.94006032]
[1755931090673,0.06,207.08,207.01,0.03]
[1755931090674,0.06,207.08,207.07,13.94006032]
[1755931093116,0.06,207.08,207.07,13.24006032]
[1755931095194,0.06,207.08,207.07,13.94006032]
[1755931096906,0.06,207.08,207.07,13.80948499]
[1755931097206,0.06,207.08,207.07,13.80940632]
[1755931097982,0.06,207.08,207.07,3.91621224]
[1755931098493,0.06,207.08,207.07,13.80940632]
[1755931101377,0.06,207.08,207.07,3.21621224]
[1755931101581,0.75,207.08,207.07,3.21621224]
[1755931102390,0.75,207.08,207.07,29.21621224]
[1755931102711,0.75,207.08,207.07,3.21621224]
[1755931102893,0.06,207.08,207.07,3.21621224]
[1755931103284,0.75,207.08,207.07,3.21621224]
[1755931104599,10.64319408,207.08,207.07,3.21621224]
[1755931105119,0.75,207.08,207.07,3.21621224]
[1755931105825,13.59559401,207.07,207.06,0.03]
[1755931106030,23.48878809,207.07,207.06,3.2473534]
[1755931106213,24.17878809,207.07,207.06,3.2473534]
[1755931106380,24.17878809,207.07,207.06,3.24823954]
[1755931106704,24.17878809,207.07,207.06,0.03]
[1755931106907,24.46311123,207.07,207.06,0.03]
[1755931108187,62.39878809,207.07,207.06,0.03]
[1755931108925,62.68311123,207.07,207.06,0.03]
[1755931109686,62.68311123,207.07,207.06,3.19885378]
[1755931110800,62.70311123,207.07,207.06,3.19885378]
[1755931111112,52.80991715,207.07,207.06,3.19885378]
[1755931111283,62.70311123,207.07,207.06,3.19885378]
[1755931111486,52.80991715,207.07,207.06,3.19885378]
[1755931111684,62.70311123,207.07,207.06,3.19885378]
[1755931113821,24.42311123,207.07,207.06,3.19885378]
[1755931114001,62.70311123,207.07,207.06,3.19885378]
[1755931115217,62.70311123,207.07,207.06,3.20014481]
[1755931116315,24.42311123,207.07,207.06,3.20014481]
[1755931116512,62.70311123,207.07,207.06,3.20014481]
[1755931116711,62.70311123,207.07,207.06,0.03]
[1755931116910,62.70311123,207.07,207.03,0.03]
[1755931116911,13.87991715,207.06,207.03,0.03]
[1755931117098,23.77311123,207.04,207.03,0.03]
[1755931117303,23.77311123,207.03,207.0,0.03]
[1755931117495,23.77311123,207.02,207.0,0.03]
[1755931117698,24.42311123,207.02,207.0,0.03]
[1755931117894,13.87991715,207.01,206.95,0.03]
[1755931118105,23.77311123,206.99,206.95,0.03]
[1755931118394,62.05311123,206.98,206.95,0.03]